[Event "Titled Tuesday Blitz January 03 Early 2023"]
[White "Kukula, Pawel"]
[Black "Gutierrez Anaya, Yeison Joel"]
[WhiteFideId "1115081"]
[BlackFideId "3903273"]
[WhiteElo "2135"]
[BlackElo "2125"]
[Result "1-0"]
[Round "11"]
[TimeControl "180+2"]
[Date "2023.01.03"]
[WhiteClock "0:00:24"]
[BlackClock "0:00:04"]

1. d4 {[%clk 0:02:52]}  Nf6 {[%clk 0:02:59]} 2. Bg5 {[%clk 0:02:51]}  g6 {[%clk 0:02:58]} 3. Nc3 {[%clk 0:02:48]}  d5 {[%clk 0:02:56]} 4. Qd2 {[%clk 0:02:46]}  Bg7 {[%clk 0:02:53]} 5. Bh6 {[%clk 0:02:46]}  Bxh6 {[%clk 0:02:43]} 6. Qxh6 {[%clk 0:02:47]}  c5 {[%clk 0:02:44]} 7. dxc5 {[%clk 0:02:41]}  Qa5 {[%clk 0:02:43]} 8. O-O-O {[%clk 0:02:40]}  Qxc5 {[%clk 0:02:42]} 9. e3 {[%clk 0:02:32]}  Nc6 {[%clk 0:02:42]} 10. Bb5 {[%clk 0:02:29]}  a6 {[%clk 0:02:41]} 11. Ba4 {[%clk 0:02:29]}  Be6 {[%clk 0:02:37]} 12. h3 {[%clk 0:02:25]}  b5 {[%clk 0:02:22]} 13. Bb3 {[%clk 0:02:24]}  d4 {[%clk 0:02:18]} 14. exd4 {[%clk 0:02:19]}  Nxd4 {[%clk 0:02:18]} 15. Bxe6 {[%clk 0:02:08]}  Nxe6 {[%clk 0:02:19]} 16. Nf3 {[%clk 0:02:03]}  Qxf2 {[%clk 0:02:03]} 17. Rd2 {[%clk 0:02:02]}  Qc5 {[%clk 0:01:57]} 18. Rhd1 {[%clk 0:01:59]}  Qh5 {[%clk 0:01:56]} 19. Qe3 {[%clk 0:01:53]}  O-O {[%clk 0:01:53]} 20. Ne5 {[%clk 0:01:53]}  Rfd8 {[%clk 0:01:46]} 21. g4 {[%clk 0:01:46]}  Qh4 {[%clk 0:01:36]} 22. Nc6 {[%clk 0:01:31]}  Rxd2 {[%clk 0:01:26]} 23. Nxe7+ {[%clk 0:01:30]}  Kg7 {[%clk 0:01:02]} 24. Qxd2 {[%clk 0:01:29]}  Qxh3 {[%clk 0:01:01]} 25. g5 {[%clk 0:01:01]}  Ng8 {[%clk 0:00:54]} 26. Ned5 {[%clk 0:00:55]}  h6 {[%clk 0:00:49]} 27. gxh6+ {[%clk 0:00:48]}  Qxh6 {[%clk 0:00:50]} 28. Ne3 {[%clk 0:00:47]}  Rd8 {[%clk 0:00:48]} 29. Ncd5 {[%clk 0:00:47]}  Qg5 {[%clk 0:00:36]} 30. Kb1 {[%clk 0:00:46]}  b4 {[%clk 0:00:34]} 31. Qxb4 {[%clk 0:00:41]}  Nf6 {[%clk 0:00:21]} 32. Qc3 {[%clk 0:00:35]}  Nf4 {[%clk 0:00:21]} 33. Nxf6 {[%clk 0:00:31]}  Rxd1+ {[%clk 0:00:22]} 34. Nxd1 {[%clk 0:00:30]}  Qxf6 {[%clk 0:00:21]} 35. Qe3 {[%clk 0:00:29]}  Nd5 {[%clk 0:00:18]} 36. Qd2 {[%clk 0:00:29]}  Qe5 {[%clk 0:00:15]} 37. a3 {[%clk 0:00:28]}  f5 {[%clk 0:00:14]} 38. Nf2 {[%clk 0:00:28]}  f4 {[%clk 0:00:14]} 39. Nd3 {[%clk 0:00:28]}  Qe3 {[%clk 0:00:13]} 40. Qa5 {[%clk 0:00:28]}  Qg1+ {[%clk 0:00:07]} 41. Ka2 {[%clk 0:00:28]}  Qd4 {[%clk 0:00:06]} 42. Qxa6 {[%clk 0:00:25]}  f3 {[%clk 0:00:06]} 43. Qb7+ {[%clk 0:00:25]}  Kh6 {[%clk 0:00:05]} 44. Qc8 {[%clk 0:00:24]}  Qc4+ {[%clk 0:00:04]} 45. Qxc4 {[%clk 0:00:24]} 1-0


[Site "https://www.chess.com"]

[Event "Titled Tuesday Blitz January 03 Early 2023"]
[White "Liu, Kelsey"]
[Black "Gholami Orimi, Mahdi"]
[WhiteFideId "30944481"]
[BlackFideId "12558486"]
[WhiteElo "2065"]
[BlackElo "2420"]
[Result "0-1"]
[Round "11"]
[TimeControl "180+2"]
[Date "2023.01.03"]
[WhiteClock "0:00:30"]
[BlackClock "0:02:10"]

1. e4 {[%clk 0:02:58]}  c5 {[%clk 0:02:59]} 2. Nf3 {[%clk 0:02:58]}  d6 {[%clk 0:02:58]} 3. Nc3 {[%clk 0:02:57]}  Nf6 {[%clk 0:02:58]} 4. e5 {[%clk 0:02:58]}  Nfd7 {[%clk 0:02:54]} 5. exd6 {[%clk 0:02:57]}  e6 {[%clk 0:02:53]} 6. Nb5 {[%clk 0:02:54]}  Na6 {[%clk 0:02:52]} 7. d4 {[%clk 0:02:49]}  Qb6 {[%clk 0:02:38]} 8. Be3 {[%clk 0:01:38]}  Bxd6 {[%clk 0:02:35]} 9. dxc5 {[%clk 0:01:31]}  Bxc5 {[%clk 0:02:34]} 10. Bxc5 {[%clk 0:01:29]}  Qxc5 {[%clk 0:02:31]} 11. Nd6+ {[%clk 0:01:29]}  Ke7 {[%clk 0:02:31]} 12. Nxc8+ {[%clk 0:01:28]}  Raxc8 {[%clk 0:02:31]} 13. Bxa6 {[%clk 0:01:28]}  bxa6 {[%clk 0:02:32]} 14. O-O {[%clk 0:01:28]}  Qxc2 {[%clk 0:02:31]} 15. Qd4 {[%clk 0:01:27]}  Rhd8 {[%clk 0:02:19]} 16. Qxg7 {[%clk 0:01:22]}  Qg6 {[%clk 0:02:19]} 17. Qxg6 {[%clk 0:01:09]}  hxg6 {[%clk 0:02:20]} 18. Rac1 {[%clk 0:01:08]}  Nc5 {[%clk 0:02:18]} 19. Rfd1 {[%clk 0:01:02]}  Rxd1+ {[%clk 0:02:18]} 20. Rxd1 {[%clk 0:01:03]}  Na4 {[%clk 0:02:18]} 21. b3 {[%clk 0:00:48]}  Nc3 {[%clk 0:02:19]} 22. Ra1 {[%clk 0:00:41]}  Nxa2 {[%clk 0:02:15]} 23. Kf1 {[%clk 0:00:41]}  Rc1+ {[%clk 0:02:12]} 24. Rxc1 {[%clk 0:00:40]}  Nxc1 {[%clk 0:02:13]} 25. Nd4 {[%clk 0:00:39]}  Kd6 {[%clk 0:02:13]} 26. Ke1 {[%clk 0:00:37]}  Kc5 {[%clk 0:02:13]} 27. Nf3 {[%clk 0:00:31]}  Nxb3 {[%clk 0:02:12]} 28. Ng5 {[%clk 0:00:32]}  a5 {[%clk 0:02:12]} 29. Nxf7 {[%clk 0:00:29]}  a4 {[%clk 0:02:12]} 30. Ne5 {[%clk 0:00:30]}  a3 {[%clk 0:02:10]} 0-1


[Site "https://www.chess.com"]

[Event "Titled Tuesday Blitz January 03 Early 2023"]
[White "Buscar, Michael"]
[Black "Ginzburg, Yakov"]
[WhiteFideId "2603616"]
[BlackFideId "4157176"]
[WhiteElo "2041"]
[BlackElo "2405"]
[Result "0-1"]
[Round "11"]
[TimeControl "180+2"]
[Date "2023.01.03"]
[WhiteClock "0:00:10"]
[BlackClock "0:00:28"]

1. d4 {[%clk 0:03:00]}  d5 {[%clk 0:02:59]} 2. c4 {[%clk 0:03:00]}  c6 {[%clk 0:02:59]} 3. Nc3 {[%clk 0:03:00]}  Nf6 {[%clk 0:02:59]} 4. Nf3 {[%clk 0:03:01]}  dxc4 {[%clk 0:02:59]} 5. e3 {[%clk 0:03:01]}  b5 {[%clk 0:02:59]} 6. a4 {[%clk 0:03:01]}  b4 {[%clk 0:03:00]} 7. Na2 {[%clk 0:03:02]}  e6 {[%clk 0:03:00]} 8. Bxc4 {[%clk 0:03:02]}  Bb7 {[%clk 0:03:00]} 9. O-O {[%clk 0:02:58]}  Be7 {[%clk 0:02:58]} 10. b3 {[%clk 0:02:54]}  Nbd7 {[%clk 0:02:58]} 11. Bb2 {[%clk 0:02:55]}  O-O {[%clk 0:02:58]} 12. Nc1 {[%clk 0:02:54]}  a5 {[%clk 0:02:57]} 13. Nd3 {[%clk 0:02:54]}  c5 {[%clk 0:02:58]} 14. Nde5 {[%clk 0:02:54]}  cxd4 {[%clk 0:02:57]} 15. Bxd4 {[%clk 0:02:52]}  Nxe5 {[%clk 0:02:54]} 16. Nxe5 {[%clk 0:02:43]}  Bd5 {[%clk 0:02:46]} 17. Qe2 {[%clk 0:02:36]}  Rc8 {[%clk 0:02:33]} 18. Rfd1 {[%clk 0:02:30]}  Bxc4 {[%clk 0:02:26]} 19. Nxc4 {[%clk 0:02:28]}  Qe8 {[%clk 0:02:20]} 20. Nxa5 {[%clk 0:02:25]}  Nd5 {[%clk 0:02:19]} 21. Nc4 {[%clk 0:02:22]}  f6 {[%clk 0:02:16]} 22. Nb6 {[%clk 0:02:13]}  Nxb6 {[%clk 0:02:14]} 23. Bxb6 {[%clk 0:02:13]}  Rc3 {[%clk 0:02:12]} 24. Rd3 {[%clk 0:02:03]}  Qc6 {[%clk 0:02:11]} 25. Bd4 {[%clk 0:01:49]}  Rxd3 {[%clk 0:02:10]} 26. Qxd3 {[%clk 0:01:48]}  e5 {[%clk 0:02:09]} 27. Bb2 {[%clk 0:01:44]}  Rd8 {[%clk 0:02:09]} 28. Qe2 {[%clk 0:01:41]}  Qd5 {[%clk 0:02:01]} 29. a5 {[%clk 0:01:11]}  Qxb3 {[%clk 0:02:00]} 30. a6 {[%clk 0:01:09]}  Bc5 {[%clk 0:01:59]} 31. h4 {[%clk 0:01:03]}  Ba7 {[%clk 0:01:58]} 32. Rc1 {[%clk 0:01:01]}  e4 {[%clk 0:01:32]} 33. h5 {[%clk 0:01:00]}  Kf8 {[%clk 0:01:30]} 34. h6 {[%clk 0:01:00]}  Qd3 {[%clk 0:00:37]} 35. hxg7+ {[%clk 0:00:56]}  Kxg7 {[%clk 0:00:36]} 36. Rc7+ {[%clk 0:00:51]}  Kh6 {[%clk 0:00:34]} 37. Qg4 {[%clk 0:00:23]}  Qd1+ {[%clk 0:00:33]} 38. Qxd1 {[%clk 0:00:23]}  Rxd1+ {[%clk 0:00:34]} 39. Kh2 {[%clk 0:00:24]}  Bb8 {[%clk 0:00:35]} 40. g3 {[%clk 0:00:10]}  Bxc7 {[%clk 0:00:34]} 41. Bxf6 {[%clk 0:00:10]}  Bb6 {[%clk 0:00:28]} 0-1


[Site "https://www.chess.com"]

[Event "Titled Tuesday Blitz January 03 Early 2023"]
[White "Mikhalsky, Vladimir"]
[Black "Rosenberg, Evan S"]
[WhiteFideId "14144352"]
[BlackFideId "2019299"]
[WhiteElo "2219"]
[BlackElo "1956"]
[Result "1-0"]
[Round "11"]
[TimeControl "180+2"]
[Date "2023.01.03"]
[WhiteClock "0:00:06"]
[BlackClock "0:00:03"]

1. d4 {[%clk 0:03:00]}  d5 {[%clk 0:02:59]} 2. c4 {[%clk 0:02:58]}  e6 {[%clk 0:02:59]} 3. Nf3 {[%clk 0:02:58]}  c5 {[%clk 0:02:59]} 4. cxd5 {[%clk 0:02:57]}  exd5 {[%clk 0:02:59]} 5. g3 {[%clk 0:02:57]}  Nf6 {[%clk 0:02:57]} 6. Bg2 {[%clk 0:02:57]}  Be7 {[%clk 0:02:55]} 7. O-O {[%clk 0:02:53]}  Nc6 {[%clk 0:02:47]} 8. dxc5 {[%clk 0:02:52]}  Bxc5 {[%clk 0:02:47]} 9. Qc2 {[%clk 0:02:52]}  Bb6 {[%clk 0:02:40]} 10. Nc3 {[%clk 0:02:52]}  Be6 {[%clk 0:02:28]} 11. Na4 {[%clk 0:02:49]}  Rc8 {[%clk 0:02:08]} 12. Nxb6 {[%clk 0:02:35]}  Qxb6 {[%clk 0:02:05]} 13. Qa4 {[%clk 0:02:29]}  O-O {[%clk 0:01:48]} 14. b3 {[%clk 0:02:14]}  Ne4 {[%clk 0:01:32]} 15. Be3 {[%clk 0:02:11]}  Qb4 {[%clk 0:01:16]} 16. Qxb4 {[%clk 0:02:05]}  Nxb4 {[%clk 0:01:17]} 17. Bxa7 {[%clk 0:02:04]}  Ra8 {[%clk 0:01:17]} 18. Bb6 {[%clk 0:01:48]}  Nxa2 {[%clk 0:00:59]} 19. Nd4 {[%clk 0:01:41]}  Nac3 {[%clk 0:00:58]} 20. f3 {[%clk 0:01:12]}  Nf6 {[%clk 0:00:27]} 21. Nxe6 {[%clk 0:01:04]}  fxe6 {[%clk 0:00:24]} 22. Bc5 {[%clk 0:00:50]}  Rxa1 {[%clk 0:00:18]} 23. Rxa1 {[%clk 0:00:47]}  Rc8 {[%clk 0:00:19]} 24. b4 {[%clk 0:00:34]}  Nxe2+ {[%clk 0:00:19]} 25. Kf2 {[%clk 0:00:33]}  Nc3 {[%clk 0:00:19]} 26. Bh3 {[%clk 0:00:32]}  Kf7 {[%clk 0:00:18]} 27. Ra7 {[%clk 0:00:30]}  Rc7 {[%clk 0:00:15]} 28. Bb6 {[%clk 0:00:29]}  Rd7 {[%clk 0:00:13]} 29. Ra8 {[%clk 0:00:29]}  d4 {[%clk 0:00:11]} 30. Ke1 {[%clk 0:00:27]}  d3 {[%clk 0:00:10]} 31. Kd2 {[%clk 0:00:27]}  Ncd5 {[%clk 0:00:09]} 32. Bc5 {[%clk 0:00:23]}  b6 {[%clk 0:00:09]} 33. Rf8+ {[%clk 0:00:20]}  Kg6 {[%clk 0:00:09]} 34. Bxe6 {[%clk 0:00:19]}  bxc5 {[%clk 0:00:08]} 35. Bxd7 {[%clk 0:00:19]}  Nxd7 {[%clk 0:00:09]} 36. Rd8 {[%clk 0:00:19]}  N7f6 {[%clk 0:00:06]} 37. bxc5 {[%clk 0:00:18]}  Nc7 {[%clk 0:00:05]} 38. Rd4 {[%clk 0:00:16]}  Ne6 {[%clk 0:00:04]} 39. c6 {[%clk 0:00:09]}  Nxd4 {[%clk 0:00:04]} 40. c7 {[%clk 0:00:10]}  Nxf3+ {[%clk 0:00:04]} 41. Ke3 {[%clk 0:00:09]}  d2 {[%clk 0:00:04]} 42. Ke2 {[%clk 0:00:07]}  Ne4 {[%clk 0:00:03]} 43. c8=Q {[%clk 0:00:06]}  Nc3+ {[%clk 0:00:03]} 44. Qxc3 {[%clk 0:00:05]}  Ng5 {[%clk 0:00:03]} 45. Qd3+ {[%clk 0:00:05]}  Kh6 {[%clk 0:00:04]} 46. Kxd2 {[%clk 0:00:05]}  g6 {[%clk 0:00:04]} 47. Qe3 {[%clk 0:00:06]}  Kh5 {[%clk 0:00:04]} 48. h4 {[%clk 0:00:06]}  Ne4+ {[%clk 0:00:03]} 49. Qxe4 {[%clk 0:00:06]}  h6 {[%clk 0:00:03]} 50. Qf3# {[%clk 0:00:06]} 1-0


[Site "https://www.chess.com"]

[Event "Titled Tuesday Blitz January 03 Early 2023"]
[White "Donskov, Anatoly"]
[Black "Winkels, Marcel"]
[WhiteFideId "24143413"]
[BlackFideId "1003887"]
[WhiteElo "2279"]
[BlackElo "1960"]
[Result "1-0"]
[Round "11"]
[TimeControl "180+2"]
[Date "2023.01.03"]
[WhiteClock "0:00:20"]
[BlackClock "0:00:01"]

1. e4 {[%clk 0:03:00]}  c5 {[%clk 0:02:58]} 2. Nf3 {[%clk 0:03:00]}  e6 {[%clk 0:02:59]} 3. d4 {[%clk 0:03:00]}  cxd4 {[%clk 0:02:59]} 4. Nxd4 {[%clk 0:02:49]}  Nc6 {[%clk 0:03:00]} 5. Nc3 {[%clk 0:02:49]}  a6 {[%clk 0:02:59]} 6. Be3 {[%clk 0:02:46]}  Bb4 {[%clk 0:02:57]} 7. Nxc6 {[%clk 0:02:46]}  bxc6 {[%clk 0:02:56]} 8. Qd4 {[%clk 0:02:46]}  Bf8 {[%clk 0:02:50]} 9. e5 {[%clk 0:02:44]}  Ne7 {[%clk 0:02:49]} 10. Bd3 {[%clk 0:02:41]}  Nd5 {[%clk 0:02:44]} 11. Bd2 {[%clk 0:02:41]}  Rb8 {[%clk 0:02:32]} 12. b3 {[%clk 0:02:20]}  Bb4 {[%clk 0:02:18]} 13. O-O {[%clk 0:01:59]}  Bxc3 {[%clk 0:02:05]} 14. Bxc3 {[%clk 0:02:00]}  Nxc3 {[%clk 0:02:05]} 15. Qxc3 {[%clk 0:02:01]}  O-O {[%clk 0:02:02]} 16. Rad1 {[%clk 0:01:58]}  f5 {[%clk 0:02:01]} 17. Bc4 {[%clk 0:01:54]}  Qe7 {[%clk 0:01:55]} 18. Rd6 {[%clk 0:01:51]}  f4 {[%clk 0:01:32]} 19. Rfd1 {[%clk 0:01:46]}  f3 {[%clk 0:01:30]} 20. g3 {[%clk 0:01:46]}  Qg5 {[%clk 0:01:26]} 21. a4 {[%clk 0:01:37]}  Rf5 {[%clk 0:01:24]} 22. Re1 {[%clk 0:01:29]}  Qg4 {[%clk 0:01:17]} 23. a5 {[%clk 0:00:56]}  h6 {[%clk 0:00:51]} 24. Rd4 {[%clk 0:00:50]}  Qh3 {[%clk 0:00:44]} 25. Bf1 {[%clk 0:00:49]}  Qh5 {[%clk 0:00:41]} 26. Re3 {[%clk 0:00:34]}  g5 {[%clk 0:00:30]} 27. g4 {[%clk 0:00:30]}  Qf7 {[%clk 0:00:12]} 28. gxf5 {[%clk 0:00:30]}  Qxf5 {[%clk 0:00:12]} 29. Rxf3 {[%clk 0:00:29]}  Qxe5 {[%clk 0:00:10]} 30. Rxd7 {[%clk 0:00:22]}  Qxc3 {[%clk 0:00:09]} 31. Rd8+ {[%clk 0:00:22]}  Kg7 {[%clk 0:00:08]} 32. Rxc3 {[%clk 0:00:22]}  Kf7 {[%clk 0:00:04]} 33. Rxc6 {[%clk 0:00:22]}  Ke7 {[%clk 0:00:03]} 34. Rdxc8 {[%clk 0:00:22]}  Rb4 {[%clk 0:00:01]} 35. Rxa6 {[%clk 0:00:20]} 1-0


[Site "https://www.chess.com"]

[Event "Titled Tuesday Blitz January 03 Early 2023"]
[White "Fernandez Garcia, Gumersindo"]
[Black "Estrada Nieto, Julian"]
[WhiteFideId "24516740"]
[BlackFideId "5101018"]
[WhiteElo "2160"]
[BlackElo "2215"]
[Result "1-0"]
[Round "11"]
[TimeControl "180+2"]
[Date "2023.01.03"]
[WhiteClock "0:01:20"]
[BlackClock "0:00:02"]

1. e4 {[%clk 0:03:00]}  e5 {[%clk 0:02:59]} 2. Nf3 {[%clk 0:03:00]}  Nc6 {[%clk 0:02:59]} 3. d4 {[%clk 0:03:01]}  exd4 {[%clk 0:02:59]} 4. Bc4 {[%clk 0:03:01]}  Bc5 {[%clk 0:02:58]} 5. c3 {[%clk 0:03:02]}  Nf6 {[%clk 0:02:55]} 6. cxd4 {[%clk 0:03:01]}  Bb4+ {[%clk 0:02:55]} 7. Bd2 {[%clk 0:03:02]}  Bxd2+ {[%clk 0:02:54]} 8. Nbxd2 {[%clk 0:03:03]}  d5 {[%clk 0:02:54]} 9. Bb5 {[%clk 0:02:38]}  dxe4 {[%clk 0:02:45]} 10. Ne5 {[%clk 0:02:38]}  O-O {[%clk 0:02:40]} 11. Nxc6 {[%clk 0:02:37]}  bxc6 {[%clk 0:02:40]} 12. Bxc6 {[%clk 0:02:37]}  Rb8 {[%clk 0:02:36]} 13. O-O {[%clk 0:02:37]}  Qxd4 {[%clk 0:02:12]} 14. Nxe4 {[%clk 0:02:35]}  Qxd1 {[%clk 0:02:07]} 15. Nxf6+ {[%clk 0:02:34]}  gxf6 {[%clk 0:02:07]} 16. Rfxd1 {[%clk 0:02:34]}  Rxb2 {[%clk 0:02:07]} 17. Bd5 {[%clk 0:02:30]}  Be6 {[%clk 0:02:03]} 18. g3 {[%clk 0:02:23]}  Rfb8 {[%clk 0:01:58]} 19. Rac1 {[%clk 0:02:18]}  Bxd5 {[%clk 0:01:50]} 20. Rxd5 {[%clk 0:02:18]}  Rb1 {[%clk 0:01:45]} 21. Rxb1 {[%clk 0:02:14]}  Rxb1+ {[%clk 0:01:45]} 22. Kg2 {[%clk 0:02:15]}  Rb2 {[%clk 0:01:35]} 23. Ra5 {[%clk 0:02:14]}  Rb7 {[%clk 0:01:35]} 24. Kf3 {[%clk 0:02:07]}  Kf8 {[%clk 0:01:30]} 25. Kf4 {[%clk 0:02:07]}  Ke7 {[%clk 0:01:30]} 26. Kf3 {[%clk 0:01:56]}  c6 {[%clk 0:01:29]} 27. Rh5 {[%clk 0:01:55]}  Rb2 {[%clk 0:01:21]} 28. Ra5 {[%clk 0:01:55]}  Rb7 {[%clk 0:01:21]} 29. Rh5 {[%clk 0:01:55]}  Rb5 {[%clk 0:01:18]} 30. Rxh7 {[%clk 0:01:54]}  Ra5 {[%clk 0:01:18]} 31. Rh4 {[%clk 0:01:48]}  Ra3+ {[%clk 0:01:16]} 32. Kg2 {[%clk 0:01:47]}  Rxa2 {[%clk 0:01:17]} 33. Re4+ {[%clk 0:01:47]}  Kd6 {[%clk 0:01:16]} 34. h4 {[%clk 0:01:47]}  f5 {[%clk 0:01:15]} 35. Rf4 {[%clk 0:01:46]}  Ke5 {[%clk 0:01:13]} 36. Rc4 {[%clk 0:01:46]}  Kd5 {[%clk 0:01:10]} 37. Rc1 {[%clk 0:01:46]}  Rb2 {[%clk 0:01:06]} 38. Ra1 {[%clk 0:01:45]}  Rb7 {[%clk 0:01:06]} 39. Kf3 {[%clk 0:01:43]}  f6 {[%clk 0:01:05]} 40. Kf4 {[%clk 0:01:43]}  Ke6 {[%clk 0:00:51]} 41. Re1+ {[%clk 0:01:41]}  Kf7 {[%clk 0:00:50]} 42. Kxf5 {[%clk 0:01:41]}  Rb5+ {[%clk 0:00:47]} 43. Kg4 {[%clk 0:01:41]}  Rb2 {[%clk 0:00:47]} 44. f4 {[%clk 0:01:41]}  a5 {[%clk 0:00:40]} 45. Rc1 {[%clk 0:01:40]}  Rb6 {[%clk 0:00:35]} 46. Ra1 {[%clk 0:01:38]}  Ra6 {[%clk 0:00:35]} 47. Ra4 {[%clk 0:01:38]}  c5 {[%clk 0:00:34]} 48. h5 {[%clk 0:01:37]}  Ke6 {[%clk 0:00:23]} 49. h6 {[%clk 0:01:35]}  Ra8 {[%clk 0:00:20]} 50. Kh5 {[%clk 0:01:33]}  Kf5 {[%clk 0:00:18]} 51. g4+ {[%clk 0:01:29]}  Ke6 {[%clk 0:00:18]} 52. g5 {[%clk 0:01:26]}  fxg5 {[%clk 0:00:10]} 53. fxg5 {[%clk 0:01:26]}  Kf5 {[%clk 0:00:08]} 54. g6 {[%clk 0:01:22]}  Rd8 {[%clk 0:00:06]} 55. g7 {[%clk 0:01:21]}  Rd1 {[%clk 0:00:05]} 56. g8=Q {[%clk 0:01:20]}  Rh1+ {[%clk 0:00:02]} 57. Rh4 {[%clk 0:01:19]}  Rxh4+ {[%clk 0:00:02]} 58. Kxh4 {[%clk 0:01:20]} 1-0


[Site "https://www.chess.com"]

[Event "Titled Tuesday Blitz January 03 Early 2023"]
[White "Zherebtsova, Alexandra"]
[Black "Fabris, Alberto"]
[WhiteFideId "24129518"]
[BlackFideId "801348"]
[WhiteElo "2155"]
[BlackElo "2230"]
[Result "1-0"]
[Round "11"]
[TimeControl "180+2"]
[Date "2023.01.03"]
[WhiteClock "0:00:08"]
[BlackClock "0:00:01"]

1. d4 {[%clk 0:03:00]}  Nf6 {[%clk 0:02:59]} 2. Nf3 {[%clk 0:03:00]}  e6 {[%clk 0:02:59]} 3. c4 {[%clk 0:03:00]}  d5 {[%clk 0:02:58]} 4. e3 {[%clk 0:02:59]}  c6 {[%clk 0:02:57]} 5. Nbd2 {[%clk 0:02:59]}  Nbd7 {[%clk 0:02:57]} 6. b3 {[%clk 0:02:57]}  Bd6 {[%clk 0:02:57]} 7. Bb2 {[%clk 0:02:56]}  O-O {[%clk 0:02:57]} 8. Bd3 {[%clk 0:02:56]}  Qe7 {[%clk 0:02:55]} 9. Ne5 {[%clk 0:02:56]}  Ne8 {[%clk 0:02:45]} 10. Qh5 {[%clk 0:02:40]}  f5 {[%clk 0:02:42]} 11. O-O {[%clk 0:02:23]}  Nef6 {[%clk 0:02:41]} 12. Qh3 {[%clk 0:02:22]}  Ne4 {[%clk 0:02:39]} 13. Rad1 {[%clk 0:02:18]}  Nxe5 {[%clk 0:02:37]} 14. dxe5 {[%clk 0:02:17]}  Bb4 {[%clk 0:02:37]} 15. Nb1 {[%clk 0:02:16]}  Qf7 {[%clk 0:02:19]} 16. f3 {[%clk 0:02:13]}  Nc5 {[%clk 0:02:17]} 17. Bc2 {[%clk 0:02:13]}  Nd7 {[%clk 0:02:14]} 18. Qg3 {[%clk 0:01:46]}  Ba5 {[%clk 0:02:10]} 19. Kh1 {[%clk 0:01:44]}  Bc7 {[%clk 0:02:10]} 20. f4 {[%clk 0:01:34]}  Nc5 {[%clk 0:02:07]} 21. Ba3 {[%clk 0:01:34]}  b6 {[%clk 0:02:07]} 22. Bxc5 {[%clk 0:01:33]}  bxc5 {[%clk 0:02:06]} 23. Nc3 {[%clk 0:01:27]}  Ba6 {[%clk 0:02:03]} 24. Bd3 {[%clk 0:01:27]}  Ba5 {[%clk 0:02:00]} 25. Na4 {[%clk 0:01:26]}  Qe7 {[%clk 0:01:59]} 26. cxd5 {[%clk 0:01:20]}  Bxd3 {[%clk 0:01:55]} 27. d6 {[%clk 0:01:20]}  Qb7 {[%clk 0:01:46]} 28. Nxc5 {[%clk 0:01:14]}  Qb5 {[%clk 0:01:32]} 29. Nxd3 {[%clk 0:01:14]}  Bb6 {[%clk 0:01:24]} 30. Rf2 {[%clk 0:01:11]}  a5 {[%clk 0:01:23]} 31. Rc2 {[%clk 0:01:09]}  a4 {[%clk 0:01:22]} 32. b4 {[%clk 0:01:07]}  a3 {[%clk 0:01:20]} 33. Qf2 {[%clk 0:01:05]}  Rfc8 {[%clk 0:01:16]} 34. Qd2 {[%clk 0:01:03]}  Bd8 {[%clk 0:01:09]} 35. Nc5 {[%clk 0:01:01]}  Kf7 {[%clk 0:01:07]} 36. d7 {[%clk 0:00:55]}  Rcb8 {[%clk 0:01:03]} 37. Qd6 {[%clk 0:00:54]}  Be7 {[%clk 0:00:55]} 38. Qxe6+ {[%clk 0:00:53]}  Kf8 {[%clk 0:00:56]} 39. Qxf5+ {[%clk 0:00:39]}  Kg8 {[%clk 0:00:56]} 40. Qe6+ {[%clk 0:00:39]}  Kf8 {[%clk 0:00:55]} 41. f5 {[%clk 0:00:16]}  Qxb4 {[%clk 0:00:51]} 42. Nd3 {[%clk 0:00:16]}  Qe4 {[%clk 0:00:46]} 43. Rcd2 {[%clk 0:00:13]}  Rd8 {[%clk 0:00:41]} 44. Nf2 {[%clk 0:00:13]}  Qxe3 {[%clk 0:00:40]} 45. Ng4 {[%clk 0:00:10]}  Qe4 {[%clk 0:00:37]} 46. f6 {[%clk 0:00:10]}  gxf6 {[%clk 0:00:37]} 47. Nxf6 {[%clk 0:00:10]}  Bxf6 {[%clk 0:00:34]} 48. Qxf6+ {[%clk 0:00:11]}  Kg8 {[%clk 0:00:34]} 49. Rd4 {[%clk 0:00:11]}  Qg6 {[%clk 0:00:32]} 50. Qxg6+ {[%clk 0:00:09]}  hxg6 {[%clk 0:00:32]} 51. Rf1 {[%clk 0:00:09]}  c5 {[%clk 0:00:27]} 52. Rd5 {[%clk 0:00:09]}  Ra6 {[%clk 0:00:26]} 53. h3 {[%clk 0:00:09]}  c4 {[%clk 0:00:24]} 54. Re1 {[%clk 0:00:08]}  Re6 {[%clk 0:00:22]} 55. Rc1 {[%clk 0:00:06]}  Re7 {[%clk 0:00:20]} 56. Rxc4 {[%clk 0:00:05]}  Rdxd7 {[%clk 0:00:20]} 57. Rxd7 {[%clk 0:00:05]}  Rxd7 {[%clk 0:00:21]} 58. Rc3 {[%clk 0:00:06]}  Ra7 {[%clk 0:00:19]} 59. Re3 {[%clk 0:00:05]}  Kf7 {[%clk 0:00:19]} 60. e6+ {[%clk 0:00:06]}  Ke7 {[%clk 0:00:20]} 61. Kh2 {[%clk 0:00:06]}  Ra6 {[%clk 0:00:19]} 62. g4 {[%clk 0:00:06]}  Ra4 {[%clk 0:00:17]} 63. Kg3 {[%clk 0:00:06]}  Ra5 {[%clk 0:00:15]} 64. Kf4 {[%clk 0:00:06]}  g5+ {[%clk 0:00:12]} 65. Kg3 {[%clk 0:00:06]}  Ra4 {[%clk 0:00:12]} 66. h4 {[%clk 0:00:06]}  gxh4+ {[%clk 0:00:12]} 67. Kxh4 {[%clk 0:00:07]}  Rb4 {[%clk 0:00:08]} 68. Kh5 {[%clk 0:00:07]}  Rb2 {[%clk 0:00:06]} 69. Rxa3 {[%clk 0:00:07]}  Rh2+ {[%clk 0:00:06]} 70. Kg5 {[%clk 0:00:07]}  Kxe6 {[%clk 0:00:06]} 71. Re3+ {[%clk 0:00:07]}  Kf7 {[%clk 0:00:06]} 72. a3 {[%clk 0:00:07]}  Ra2 {[%clk 0:00:06]} 73. Kf5 {[%clk 0:00:07]}  Rf2+ {[%clk 0:00:04]} 74. Kg5 {[%clk 0:00:07]}  Ra2 {[%clk 0:00:04]} 75. Rc3 {[%clk 0:00:08]}  Ra1 {[%clk 0:00:03]} 76. Rc7+ {[%clk 0:00:07]}  Ke6 {[%clk 0:00:03]} 77. Ra7 {[%clk 0:00:07]}  Ra2 {[%clk 0:00:02]} 78. Kg6 {[%clk 0:00:07]}  Rg2 {[%clk 0:00:02]} 79. g5 {[%clk 0:00:08]}  Rg1 {[%clk 0:00:02]} 80. Ra6+ {[%clk 0:00:08]}  Ke7 {[%clk 0:00:01]} 81. a4 {[%clk 0:00:07]}  Rg2 {[%clk 0:00:01]} 82. a5 {[%clk 0:00:08]}  Rg3 {[%clk 0:00:01]} 83. Rf6 {[%clk 0:00:08]}  Ra3 {[%clk 0:00:01]} 84. a6 {[%clk 0:00:08]}  Ra5 {[%clk 0:00:01]} 85. Kh6 {[%clk 0:00:08]} 1-0


[Site "https://www.chess.com"]